bitfinex/quotes_BTCUSD_20220212
["timestamp","ask_amount","ask_price","bid_price","bid_amount"]
[1644627747414,0.005,42359.0,42355.0,0.26739746]
[1644627747813,0.00048701,42358.0,42355.0,0.26739746]
[1644627748680,0.005,42359.0,42355.0,0.26739746]
[1644627748875,0.00545001,42359.0,42355.0,0.26739746]
[1644627749876,0.005,42359.0,42355.0,0.26739746]
[1644627750075,0.00545,42359.0,42355.0,0.26739746]
[1644627750577,0.00545,42359.0,42356.0,0.329515]
[1644627750777,0.00545,42359.0,42355.0,0.55463666]
[1644627751076,0.005,42359.0,42355.0,0.55463666]
[1644627752513,0.00543945,42359.0,42355.0,0.55463666]
[1644627753513,0.005,42359.0,42355.0,0.55463666]
[1644627753716,0.00543945,42359.0,42355.0,0.55463666]
[1644627754314,0.00543945,42359.0,42356.0,0.059041]
[1644627754714,0.005,42359.0,42357.0,0.329515]
[1644627755115,0.005,42359.0,42358.0,0.329515]
[1644627755315,0.005,42359.0,42356.0,0.059041]
[1644627755717,0.005,42359.0,42355.0,0.26739746]
[1644627756171,0.005,42359.0,42356.0,0.329515]
[1644627756963,0.00527376,42359.0,42356.0,0.388557]
[1644627757163,0.005,42359.0,42356.0,0.388557]
[1644627757363,0.005,42359.0,42355.0,0.26739746]
[1644627757566,0.005,42359.0,42356.0,0.329515]
[1644627757963,0.00527376,42359.0,42356.0,0.329515]
[1644627758366,0.005,42359.0,42356.0,0.329515]
[1644627758767,0.00527376,42359.0,42356.0,0.329515]
[1644627759570,0.005,42359.0,42356.0,0.329515]
[1644627760016,0.005,42359.0,42357.0,0.059039]
[1644627760222,0.00527376,42359.0,42358.0,0.329515]
[1644627760417,0.005,42359.0,42358.0,0.329515]
[1644627761915,0.005,42359.0,42358.0,0.429515]
[1644627762116,0.005,42359.0,42358.0,0.476815]
[1644627762824,0.00027376,42360.0,42359.0,1.25592652]
[1644627763016,0.31,42369.0,42359.0,1.25592652]
[1644627763017,0.00027376,42366.0,42361.0,0.059033]
[1644627763216,0.0017623,42367.0,42362.0,0.329515]
[1644627763417,0.0017623,42367.0,42362.0,0.58742225]
[1644627763670,0.00203606,42367.0,42362.0,0.58742225]
[1644627763962,0.0017623,42367.0,42362.0,0.58742225]
[1644627764163,0.00027376,42368.0,42362.0,0.58742225]
[1644627764364,0.00044062,42367.0,42362.0,0.58742225]
[1644627765468,0.00027376,42368.0,42363.0,0.329515]
[1644627765664,0.00044095,42367.0,42363.0,0.329515]
[1644627766266,0.00044095,42367.0,42366.0,0.08407945]
[1644627766466,0.00044095,42367.0,42366.0,0.07182779]
[1644627766669,0.00027376,42368.0,42365.0,0.059045]
[1644627766867,0.24480797,42369.0,42365.0,0.059045]
[1644627767067,0.00027376,42368.0,42365.0,0.059045]
[1644627767268,0.0107147,42369.0,42365.0,0.059045]
[1644627767518,0.00027376,42368.0,42365.0,0.059045]
[1644627767718,0.01,42369.0,42365.0,0.059045]
[1644627767917,0.00027376,42368.0,42365.0,0.059045]
[1644627768123,0.0107147,42369.0,42366.0,0.064766]
[1644627768318,0.00027376,42368.0,42366.0,0.064766]
[1644627768618,0.01044094,42369.0,42366.0,0.064766]
[1644627768821,0.0107147,42369.0,42365.0,0.059045]
[1644627769019,0.01027376,42369.0,42365.0,0.059045]
[1644627769220,0.01,42369.0,42365.0,0.059045]
[1644627769419,0.01027376,42369.0,42365.0,0.059045]
[1644627769821,0.01,42369.0,42366.0,0.329515]
[1644627770021,0.01027371,42369.0,42366.0,0.38854]
[1644627770219,0.01027371,42369.0,42367.0,0.329515]
[1644627770420,0.01,42369.0,42367.0,0.329515]
[1644627770622,0.01027371,42369.0,42367.0,0.329515]
[1644627770920,0.01027371,42369.0,42368.0,0.41550666]
[1644627771168,0.01,42369.0,42368.0,0.41550666]
[1644627773967,0.01,42369.0,42368.0,0.329515]
[1644627774168,0.01,42369.0,42365.0,0.059045]
[1644627774367,0.01,42369.0,42366.0,0.329515]
[1644627775020,0.01,42369.0,42368.0,0.329515]
[1644627779273,0.01,42369.0,42368.0,0.429515]
[1644627779567,0.01,42369.0,42368.0,0.476815]
[1644627780167,0.01,42369.0,42368.0,0.376815]
[1644627785120,0.00027371,42370.0,42369.0,0.7]
[1644627785420,0.00147014,42371.0,42370.0,0.388525]
[1644627785619,0.00027371,42372.0,42370.0,0.388525]
[1644627785819,0.00027371,42372.0,42370.0,0.488525]
[1644627786275,0.031,42373.0,42370.0,0.488525]
[1644627786567,0.031,42373.0,42371.0,0.51779938]
[1644627786568,0.00027371,42372.0,42371.0,0.51779938]
[1644627786771,0.03127371,42373.0,42372.0,0.329515]
[1644627786968,0.031,42373.0,42372.0,0.329515]
[1644627789774,0.33217658,42373.0,42372.0,0.05573774]
[1644627790419,0.031,42373.0,42372.0,0.05573774]
[1644627798153,0.03060145,42373.0,42372.0,0.05573774]
[1644627799155,0.03060145,42373.0,42372.0,0.55573774]
[1644627799352,0.02560145,42373.0,42372.0,0.65573774]
[1644627801571,0.02560145,42373.0,42372.0,0.55573774]
[1644627803172,0.17585538,42378.0,42372.0,0.55573774]
[1644627803376,0.0405068,42381.0,42373.0,0.86532417]
[1644627803579,0.0405068,42382.0,42375.0,0.059001]
[1644627803773,0.3,42390.0,42376.0,0.272843]
[1644627803971,0.3,42390.0,42378.0,0.117989]
[1644627804172,0.1204,42392.0,42388.0,0.23629923]
[1644627804376,0.61382871,42394.0,42388.0,0.70749192]
[1644627804572,0.35048412,42394.0,42388.0,0.70749192]
[1644627804771,0.35048412,42394.0,42388.0,0.64849592]
[1644627805221,0.005,42399.0,42388.0,0.64849592]
[1644627805222,0.35048412,42396.0,42389.0,0.225673]
[1644627805421,0.00051383,42391.0,42389.0,0.33196]
[1644627805619,0.00051383,42391.0,42390.0,0.329171]
[1644627806220,0.35048412,42397.0,42390.0,0.329171]
[1644627806419,0.08213862,42398.0,42390.0,0.329171]
[1644627806620,0.00051382,42393.0,42390.0,0.329171]
[1644627806819,0.00051382,42393.0,42390.0,0.447144]
[1644627806820,0.22520343,42393.0,42390.0,0.447144]
[1644627807024,0.22520343,42393.0,42391.0,0.329262]
[1644627807222,0.00051382,42393.0,42391.0,0.329262]
[1644627807421,0.08213862,42398.0,42391.0,0.329262]
[1644627807820,0.00033431,42394.0,42391.0,0.329262]
[1644627808672,0.28349087,42398.0,42391.0,0.329262]
[1644627808867,0.00047403,42395.0,42392.0,0.225557]
[1644627809870,0.33349087,42398.0,42393.0,0.329217]
[1644627810069,0.33349087,42398.0,42393.0,0.058999]
[1644627810273,0.00047402,42396.0,42393.0,0.058999]
[1644627810474,0.03335251,42391.0,42381.0,0.3]
[1644627810770,0.39348779,42384.0,42378.0,0.07455036]
[1644627810969,0.0495245,42387.0,42378.0,0.07455036]
[1644627810970,0.20862828,42386.0,42378.0,0.07455036]
[1644627811169,0.00029075,42383.0,42379.0,0.118029]
[1644627812174,0.07989186,42386.0,42379.0,0.118029]
[1644627812420,0.00029357,42383.0,42379.0,0.118029]
[1644627812621,0.00029357,42383.0,42381.0,0.021085]
[1644627812823,0.00029357,42383.0,42382.0,0.329217]
[1644627813021,0.00029357,42383.0,42380.0,0.059013]
[1644627813221,0.00029357,42383.0,42381.0,0.329217]
[1644627813421,0.0495245,42387.0,42381.0,0.329217]
[1644627813722,0.00047693,42384.0,42382.0,0.329217]
[1644627814727,0.11786932,42387.0,42382.0,0.329217]
[1644627814923,0.00047693,42385.0,42380.0,0.059013]
[1644627815921,0.11786932,42387.0,42380.0,0.059013]
[1644627816180,0.19329718,42384.0,42380.0,0.059013]
[1644627816373,0.19329718,42384.0,42382.0,0.329217]
[1644627816573,0.19329718,42384.0,42379.0,0.118029]
[1644627816774,0.19329718,42384.0,42376.0,0.059024]
[1644627816775,0.05,42381.0,42376.0,0.059024]
[1644627816976,0.29329718,42384.0,42374.0,0.118041]
[1644627816977,0.0473,42380.0,42374.0,0.118041]
[1644627817176,0.0473,42380.0,42375.0,0.329217]
[1644627817377,0.26728734,42386.0,42375.0,0.329217]
[1644627817575,0.06343374,42379.0,42374.0,0.118041]
[1644627817979,0.0495245,42378.0,42374.0,0.118041]
[1644627818877,0.04979877,42378.0,42374.0,0.118041]
[1644627819376,0.04979877,42378.0,42375.0,0.329217]
[1644627819576,0.19574013,42376.0,42374.0,0.118041]
[1644627819779,0.19574013,42376.0,42370.0,0.118054]
[1644627820625,0.40598759,42376.0,42370.0,0.118054]
[1644627820831,0.40598759,42376.0,42367.0,0.118062]
[1644627820832,0.376517,42375.0,42367.0,0.118062]
[1644627821024,0.3550608,42375.0,42367.0,0.118062]
[1644627821224,0.329217,42374.0,42363.0,0.118072]
[1644627821425,0.0473,42373.0,42363.0,0.118072]
[1644627821622,0.376517,42372.0,42363.0,0.118072]
[1644627821822,0.70860218,42375.0,42364.0,0.07533436]
[1644627821823,0.0473,42371.0,42364.0,0.07533436]
[1644627822023,0.70860218,42375.0,42366.0,0.059037]
[1644627822024,0.0473,42370.0,42366.0,0.059037]
[1644627822224,0.0473,42370.0,42365.0,0.23913437]
[1644627822225,0.329217,42367.0,42365.0,0.00049636]
[1644627822425,1.0473,42366.0,42344.0,0.20068715]
[1644627822627,1.0473,42366.0,42350.0,0.5]
[1644627822823,0.1149,42365.0,42350.0,0.5]
[1644627823024,0.0473,42364.0,42350.0,0.5]
[1644627823323,0.0473,42364.0,42359.0,0.08442254]
[1644627823324,0.24467722,42363.0,42359.0,0.08442254]
[1644627823524,0.0473,42362.0,42360.0,0.329217]
[1644627823783,0.0473,42361.0,42360.0,0.329217]
[1644627824284,0.0495245,42364.0,42361.0,0.08692118]
[1644627824482,0.0495245,42364.0,42362.0,0.20297081]
[1644627824483,0.0473,42363.0,42362.0,0.20297081]
[1644627825185,0.0473,42363.0,42362.0,0.53218781]
[1644627825383,0.0473,42363.0,42362.0,0.26201081]
[1644627827823,0.0473,42363.0,42362.0,0.59122781]
[1644627828024,0.37022376,42371.0,42363.0,0.021259]
[1644627828025,0.0473,42370.0,42363.0,0.021259]
[1644627828321,0.1194,42371.0,42366.0,0.329185]
[1644627828524,0.00051575,42373.0,42366.0,0.329185]
[1644627828924,0.00051575,42373.0,42370.0,0.23089357]
[1644627829124,0.30034826,42376.0,42371.0,0.021249]
[1644627829323,0.00051581,42373.0,42371.0,0.021249]
[1644627829522,0.00051581,42373.0,42372.0,0.329217]
[1644627830025,0.20115492,42373.0,42368.0,0.190644]
[1644627830222,0.20063911,42373.0,42368.0,0.190644]
[1644627830622,0.20115492,42373.0,42368.0,0.190644]
[1644627831471,0.20063911,42373.0,42368.0,0.249679]
[1644627831673,0.20063911,42373.0,42369.0,0.190641]
[1644627831870,0.20115492,42373.0,42369.0,0.190641]
[1644627832672,0.20063911,42373.0,42369.0,0.190641]
[1644627832872,0.20115493,42373.0,42369.0,0.190641]
[1644627833472,0.00051582,42373.0,42369.0,0.190641]
[1644627833673,0.00051582,42373.0,42371.0,0.190631]
[1644627833872,0.20063911,42374.0,42371.0,0.190631]
[1644627834273,0.00051582,42373.0,42371.0,0.190631]
[1644627834474,0.19615493,42372.0,42371.0,0.190631]
[1644627834674,0.52353764,42375.0,42371.0,0.190631]
[1644627834917,0.26271388,42375.0,42371.0,0.190631]
[1644627835119,0.26271388,42375.0,42369.0,0.118056]
[1644627835321,0.25082376,42373.0,42368.0,0.059035]
[1644627835522,0.25082376,42373.0,42369.0,0.19064]
[1644627835724,0.25082376,42374.0,42369.0,0.19064]
[1644627836723,0.25082376,42373.0,42369.0,0.19064]
[1644627837223,0.51705995,42373.0,42369.0,0.19064]
[1644627837825,0.27246467,42372.0,42369.0,0.19064]
[1644627838024,0.51705995,42373.0,42369.0,0.19064]
[1644627838424,0.51705995,42373.0,42367.0,0.08069235]
[1644627838974,0.26623619,42373.0,42368.0,0.190646]
[1644627839873,0.26623619,42373.0,42368.0,0.249681]
[1644627840072,0.26623619,42373.0,42369.0,0.190641]
[1644627840273,0.25082376,42374.0,42369.0,0.190641]
[1644627840474,0.08243024,42372.0,42369.0,0.190641]
[1644627841274,0.29852249,42372.0,42369.0,0.190641]
[1644627841676,0.57265316,42372.0,42370.0,0.190637]
[1644627841874,0.27647928,42371.0,42370.0,0.190637]
[1644627842443,0.27647928,42371.0,42368.0,0.059035]
[1644627842640,0.27647928,42371.0,42367.0,0.00051589]
[1644627842842,0.52730304,42371.0,42367.0,0.00051589]
[1644627843545,0.52730304,42371.0,42363.0,0.118069]
[1644627843743,0.2316303,42364.0,42363.0,0.118069]
[1644627844342,0.2316303,42364.0,42363.0,0.308748]
[1644627844542,0.2316303,42364.0,42363.0,0.118069]
[1644627844743,0.20064399,42368.0,42363.0,0.2006297]
[1644627844942,0.20064399,42368.0,42364.0,0.190673]
[1644627845141,0.20064399,42368.0,42363.0,0.2006297]
[1644627845343,0.20064399,42368.0,42364.0,0.190671]
[1644627845743,0.20064399,42369.0,42365.0,0.059034]
[1644627845943,0.20064399,42369.0,42366.0,0.19066]
[1644627846184,0.47712327,42371.0,42366.0,0.19066]
[1644627846382,0.20064399,42371.0,42366.0,0.19066]
[1644627847181,0.20064399,42371.0,42367.0,0.190654]
[1644627847383,0.07775994,42369.0,42367.0,0.190654]
[1644627847581,0.27123597,42368.0,42366.0,0.00051548]
[1644627847782,0.27123597,42368.0,42367.0,0.190654]
[1644627847985,0.27123597,42368.0,42366.0,0.00051548]
[1644627847986,0.47187996,42368.0,42366.0,0.00051548]
[1644627848182,0.27123597,42368.0,42367.0,0.190655]
[1644627848384,0.50080535,42368.0,42363.0,0.118069]
[1644627848583,0.70144934,42368.0,42365.0,0.00051548]
[1644627849584,0.70144934,42368.0,42363.0,0.118069]
[1644627849786,0.70144934,42368.0,42364.0,0.00051548]
[1644627850027,0.70144934,42368.0,42364.0,0.13104344]
[1644627850830,0.50080535,42368.0,42363.0,0.118069]
[1644627851031,0.70144934,42368.0,42363.0,0.118069]
[1644627851229,0.70144934,42368.0,42361.0,0.08692118]
[1644627851230,0.20064399,42367.0,42361.0,0.08692118]
[1644627851437,0.20064399,42364.0,42361.0,0.08692118]
[1644627851632,1.13969658,42363.0,42361.0,0.08692118]
[1644627851832,0.58588865,42362.0,42361.0,0.08692118]
[1644627852033,0.38524466,42362.0,42361.0,0.08692118]
[1644627852232,0.78799655,42362.0,42361.0,0.08692118]
[1644627852432,0.45873255,42362.0,42361.0,0.08692118]
[1644627853432,0.70955631,42362.0,42361.0,0.08692118]
[1644627853876,0.70950553,42362.0,42361.0,0.08692118]
[1644627854082,1.029264,42361.0,42359.0,0.00018286]
[1644627854280,0.87025284,42360.0,42353.0,0.00107719]
[1644627854477,0.20060858,42357.0,42353.0,0.00107719]
[1644627854677,0.31445588,42356.0,42353.0,0.00107719]
[1644627854876,0.36445588,42356.0,42353.0,0.00107719]
[1644627855078,0.329264,42355.0,42353.0,0.00107719]
[1644627855379,0.28136208,42354.0,42353.0,0.00107719]
[1644627856780,0.61062608,42354.0,42353.0,0.00107719]
[1644627856981,0.28136208,42354.0,42353.0,0.00107719]
[1644627857185,0.32866208,42354.0,42353.0,0.00107719]
[1644627857620,0.5794228,42354.0,42353.0,0.00107719]
[1644627857821,0.52918985,42354.0,42353.0,0.00107719]
[1644627858221,0.32866208,42354.0,42353.0,0.00107719]
[1644627859224,0.52918985,42354.0,42353.0,0.00107719]
[1644627859422,0.32866208,42354.0,42353.0,0.00107719]
[1644627860624,0.52918745,42354.0,42353.0,0.00107719]
[1644627860824,0.32866208,42354.0,42353.0,0.00107719]
[1644627861681,0.52928252,42354.0,42353.0,0.00107719]
[1644627861880,0.65792608,42354.0,42353.0,0.00107719]
[1644627862078,0.52928526,42354.0,42353.0,0.00107719]
[1644627862277,0.52928621,42354.0,42353.0,0.00107719]
[1644627862879,0.24792413,42354.0,42353.0,0.00107719]
[1644627863078,0.24753735,42354.0,42353.0,0.00107719]
[1644627863885,0.44816148,42354.0,42353.0,0.00107719]
[1644627864482,0.24753735,42354.0,42353.0,0.00107719]
[1644627864680,0.5313852,42354.0,42353.0,0.00107719]
[1644627864926,0.73200933,42354.0,42353.0,0.00107719]
[1644627867432,0.5313852,42354.0,42353.0,0.00107719]
[1644627870075,0.5813852,42354.0,42351.0,0.00051554]
[1644627870275,0.29753735,42354.0,42351.0,0.00051554]
[1644627870675,0.570517,42354.0,42351.0,0.00051554]
[1644627870877,0.77114113,42354.0,42351.0,0.00051554]
[1644627871077,0.77114113,42354.0,42350.0,0.06374953]
[1644627871378,0.77114113,42354.0,42350.0,0.06426507]
[1644627871577,0.90062413,42353.0,42345.0,0.119235]
[1644627871780,0.20062413,42350.0,42343.0,0.12130455]
[1644627871980,0.52988813,42347.0,42343.0,0.00316255]
[1644627872185,0.0473,42346.0,42343.0,0.00316255]
[1644627872428,0.0473,42346.0,42343.0,0.0011]
[1644627872429,0.329264,42345.0,42343.0,0.0011]
[1644627872628,0.376564,42344.0,42343.0,0.0011]
[1644627873030,0.476564,42344.0,42343.0,0.0011]
[1644627874031,0.77804365,42344.0,42343.0,0.0011]
[1644627874229,0.67804365,42344.0,42343.0,0.0011]
[1644627875430,0.376564,42344.0,42343.0,0.0011]
[1644627878073,0.0473,42344.0,42343.0,0.0011]
[1644627878474,0.25076072,42352.0,42343.0,0.0011]
[1644627878674,0.20062413,42355.0,42344.0,0.118132]
[1644627878874,0.20062413,42354.0,42344.0,0.118132]
[1644627879074,0.4785857,42354.0,42344.0,0.118132]
[1644627879274,0.08141278,42352.0,42348.0,0.20186067]
[1644627879476,0.08141278,42352.0,42348.0,0.26093067]
[1644627879673,0.329264,42351.0,42348.0,0.26140366]
[1644627879925,0.08141278,42352.0,42348.0,0.26140366]
[1644627880128,0.329264,42351.0,42348.0,0.26140366]
[1644627880328,0.1,42351.0,42348.0,0.26140366]
[1644627880526,0.25969228,42355.0,42350.0,0.05]
[1644627880731,0.32022413,42358.0,42354.0,0.05]
[1644627880926,0.20062413,42360.0,42355.0,0.190133]
[1644627881126,0.00047286,42359.0,42357.0,0.131077]
[1644627881527,0.00047286,42359.0,42356.0,0.19391187]
[1644627881927,0.20062413,42361.0,42356.0,0.25801536]
[1644627882126,0.26590457,42362.0,42356.0,0.25801536]
[1644627882326,0.00047291,42360.0,42356.0,0.25801536]
[1644627883128,0.26590457,42362.0,42356.0,0.25801536]
[1644627883527,0.00047574,42360.0,42356.0,0.25801536]
[1644627883981,0.00047574,42360.0,42356.0,0.19391187]
[1644627884378,0.26590457,42362.0,42355.0,0.059048]
[1644627884582,0.00047574,42360.0,42355.0,0.059048]
[1644627884879,0.00047574,42360.0,42356.0,0.131079]
[1644627885478,0.00047574,42360.0,42356.0,0.181079]
[1644627885678,0.20062413,42361.0,42356.0,0.181079]
[1644627885880,0.00047574,42360.0,42356.0,0.181079]
[1644627886079,0.00047574,42360.0,42356.0,0.05]
[1644627886481,0.00047574,42360.0,42359.0,0.21858852]
[1644627886684,0.41804138,42366.0,42359.0,0.26858852]
[1644627886685,0.20062413,42363.0,42359.0,0.26858852]
[1644627886981,0.00047554,42362.0,42360.0,0.131062]
[1644627887183,0.00047554,42362.0,42361.0,0.05]
[1644627887422,0.20252601,42368.0,42364.0,0.26082972]
[1644627887624,0.20252601,42368.0,42367.0,0.0704634]
[1644627887829,0.20252601,42368.0,42367.0,0.131031]
[1644627887830,0.00190188,42368.0,42367.0,0.131031]
[1644627888123,0.47051691,42369.0,42368.0,0.131027]
[1644627888324,0.47057246,42369.0,42368.0,0.131027]
[1644627889228,0.26989278,42369.0,42368.0,0.131027]
[1644627890024,0.5,42368.0,42365.0,0.06325228]
[1644627890224,0.70068505,42368.0,42365.0,0.06325228]
[1644627890624,0.20068505,42368.0,42365.0,0.06325228]
[1644627890825,0.20068505,42368.0,42366.0,0.059036]
[1644627893278,0.00051499,42369.0,42366.0,0.059036]
[1644627893279,0.20120004,42369.0,42366.0,0.059036]
[1644627893477,0.20120004,42369.0,42368.0,0.05]
[1644627893676,0.20120004,42369.0,42366.0,0.059036]
[1644627894078,0.20050649,42367.0,42366.0,0.059036]
[1644627894278,0.20050649,42367.0,42362.0,0.00049807]
[1644627894479,0.20062905,42365.0,42362.0,0.00049807]
[1644627894679,0.20062905,42364.0,42362.0,0.00049807]
[1644627895123,0.27223466,42364.0,42362.0,0.00049807]
[1644627896725,0.20062905,42364.0,42362.0,0.00049807]
[1644627897726,0.20062905,42367.0,42362.0,0.00049807]
[1644627897927,0.00051501,42365.0,42362.0,0.00049807]
[1644627898329,0.00051501,42365.0,42364.0,0.05]
[1644627898782,0.20062905,42369.0,42364.0,0.05]
[1644627898979,0.25076072,42372.0,42368.0,0.19623018]
[1644627898980,0.20062905,42370.0,42368.0,0.19623018]
[1644627899376,0.20062905,42370.0,42368.0,0.24623018]
[1644627899580,0.20062905,42372.0,42368.0,0.24623018]
[1644627899779,0.20062905,42374.0,42369.0,0.07410872]
[1644627900483,0.00047785,42372.0,42369.0,0.07410872]
[1644627901278,0.20062905,42373.0,42369.0,0.07410872]
[1644627901481,0.2011069,42373.0,42369.0,0.07410872]
[1644627901980,0.2011069,42373.0,42371.0,0.109033]
[1644627902180,0.00047785,42373.0,42371.0,0.109033]
[1644627902426,0.1961069,42374.0,42371.0,0.109033]
[1644627902626,0.19658474,42374.0,42371.0,0.109033]
[1644627903028,0.00047784,42374.0,42371.0,0.109033]
[1644627903629,0.25076072,42375.0,42371.0,0.109033]
[1644627903826,0.30028522,42376.0,42371.0,0.109033]
[1644627904428,0.24704725,42376.0,42371.0,0.109033]
[1644627904628,0.0006,42374.0,42371.0,0.109033]
[1644627905631,0.23764725,42376.0,42371.0,0.109033]
[1644627906180,0.23816221,42376.0,42371.0,0.109033]
[1644627906374,0.04063946,42376.0,42371.0,0.109033]
[1644627906775,0.04063946,42376.0,42373.0,0.2283204]
[1644627907177,0.04063946,42376.0,42374.0,0.05]
[1644627907178,0.0401245,42376.0,42374.0,0.05]
[1644627909925,0.4901245,42376.0,42370.0,0.06465991]
[1644627910527,0.0301245,42376.0,42370.0,0.06465991]
[1644627910728,0.0301245,42376.0,42371.0,0.059033]
[1644627910928,0.28358966,42382.0,42371.0,0.059033]
[1644627911133,0.0005154,42375.0,42371.0,0.059033]
[1644627911328,0.0005154,42375.0,42374.0,0.26691956]
[1644627912028,0.00027428,42380.0,42375.0,0.05903]
[1644627912229,0.0005154,42377.0,42370.0,0.06465991]
[1644627912429,0.20097759,42377.0,42370.0,0.06465991]
[1644627913229,0.20046219,42377.0,42370.0,0.06465991]
[1644627913429,0.0005154,42376.0,42370.0,0.06465991]
[1644627913683,0.18969233,42376.0,42370.0,0.06465991]
[1644627914475,0.18917693,42376.0,42370.0,0.06465991]
[1644627914774,0.0005154,42375.0,42370.0,0.06465991]
[1644627915578,0.20046219,42377.0,42370.0,0.06465991]
[1644627915977,0.0005154,42375.0,42370.0,0.06465991]
[1644627916578,0.19097759,42377.0,42370.0,0.06465991]
[1644627917425,0.55,42376.0,42367.0,0.23858174]
[1644627918130,0.00027428,42378.0,42367.0,0.23858174]
[1644627918329,0.38574108,42379.0,42367.0,0.23858174]
[1644627918530,0.24471195,42376.0,42367.0,0.23858174]
[1644627918834,0.24471195,42376.0,42370.0,0.118061]
[1644627919030,0.00033264,42377.0,42370.0,0.118061]
[1644627919229,0.00027428,42378.0,42370.0,0.118061]
[1644627919431,0.00051538,42377.0,42371.0,0.00051545]
[1644627920431,0.57854221,42378.0,42370.0,0.118061]
[1644627920634,0.00051539,42377.0,42371.0,0.00051545]
[1644627920832,0.25072012,42375.0,42371.0,0.00051545]
[1644627921675,0.25072012,42375.0,42368.0,0.19443306]
[1644627921877,0.25072012,42375.0,42371.0,0.00051545]
[1644627922477,0.25072012,42375.0,42371.0,0.05954945]
[1644627922881,0.25072012,42375.0,42371.0,0.059034]
[1644627923078,0.25072012,42375.0,42371.0,0.00047336]
[1644627923480,0.25072012,42374.0,42371.0,0.00047336]
[1644627924084,0.379263,42373.0,42368.0,0.118067]
[1644627924281,0.329263,42371.0,42370.0,0.00047336]
[1644627924481,0.6194345,42371.0,42370.0,0.00047336]
[1644627924686,0.92027588,42371.0,42370.0,0.00047336]
[1644627924929,0.72842308,42371.0,42370.0,0.00047336]
[1644627925132,1.17884024,42371.0,42370.0,0.00047336]
[1644627925331,1.17884024,42371.0,42368.0,0.00047337]
[1644627925531,1.22884024,42371.0,42368.0,0.00047337]
[1644627925732,0.30084138,42370.0,42368.0,0.00047337]
[1644627926130,0.40084138,42370.0,42368.0,0.00047337]
[1644627926332,0.30084138,42369.0,42368.0,0.00047337]
[1644627926532,0.1,42370.0,42363.0,0.36992247]
[1644627926533,0.30084138,42370.0,42363.0,0.36992247]
[1644627926738,0.63782736,42371.0,42367.0,0.00047337]
[1644627926739,0.30084138,42369.0,42367.0,0.00047337]
[1644627926934,0.25102658,42368.0,42367.0,0.05951437]
[1644627927738,0.25102658,42368.0,42365.0,0.00047621]
[1644627927739,0.66479148,42368.0,42365.0,0.00047621]
[1644627927937,0.30125332,42366.0,42365.0,0.00047621]
[1644627928136,0.31089941,42366.0,42365.0,0.00047621]
[1644627928337,0.61215894,42366.0,42365.0,0.00047621]
[1644627928789,0.61215894,42366.0,42363.0,0.059046]
[1644627928790,0.30125953,42366.0,42363.0,0.059046]
[1644627928988,0.30125953,42366.0,42363.0,0.05952222]
[1644627929192,0.08592058,42364.0,42363.0,0.05952222]
[1644627929392,0.08592058,42364.0,42363.0,0.00047622]
[1644627929589,0.38718011,42364.0,42363.0,0.00047622]
[1644627929889,0.13592058,42364.0,42363.0,0.00047622]
[1644627930090,0.13592058,42364.0,42362.0,0.00049807]
[1644627930291,0.30132219,42363.0,42362.0,0.00049807]
[1644627931090,0.43724277,42364.0,42362.0,0.00049807]
[1644627934234,0.13592058,42364.0,42362.0,0.00049807]
[1644627934535,0.43724277,42364.0,42362.0,0.00049807]
[1644627937394,0.13592058,42364.0,42363.0,0.25980196]
[1644627937797,0.13592058,42364.0,42363.0,0.25971963]
[1644627939293,0.08592058,42364.0,42363.0,0.25971963]
[1644627940135,0.30132219,42365.0,42363.0,0.25971963]
[1644627943537,0.05,42364.0,42362.0,0.00097464]
[1644627943783,0.329263,42363.0,42362.0,0.00097464]
[1644627943981,0.9300003,42363.0,42362.0,0.00097464]
[1644627944186,1.02646223,42363.0,42362.0,0.00097464]
[1644627944380,1.23569935,42363.0,42362.0,0.00049807]
[1644627944581,1.14323799,42363.0,42362.0,0.00049807]
[1644627944782,1.38856567,42363.0,42362.0,0.00049807]
[1644627944984,1.05930267,42363.0,42362.0,0.00049807]
[1644627945785,1.38856567,42363.0,42362.0,0.00049807]
[1644627945985,1.14419719,42363.0,42362.0,0.00049807]
[1644627946181,1.47346019,42363.0,42362.0,0.00049807]
[1644627946381,1.14419719,42363.0,42362.0,0.00049807]
[1644627946581,1.47346019,42363.0,42362.0,0.00049807]
[1644627946781,1.14419719,42363.0,42362.0,0.00049807]
[1644627948129,1.47346019,42363.0,42362.0,0.00049807]
[1644627948730,1.52253381,42363.0,42362.0,0.00049807]
[1644627949132,1.57253381,42363.0,42362.0,0.00049807]
[1644627950932,1.69066381,42363.0,42362.0,0.00049807]
[1644627951777,1.3321827,42363.0,42362.0,0.00049807]
[1644627955137,1.35686058,42363.0,42362.0,0.00049807]
[1644627955739,1.3321827,42363.0,42362.0,0.00049807]
[1644627960586,0.05906039,42361.0,42352.0,0.00021245]
[1644627960782,0.20076101,42353.0,42351.0,0.05927445]
[1644627960982,0.05,42353.0,42352.0,0.00021245]
[1644627961179,0.05,42353.0,42351.0,0.059062]
[1644627961180,0.379263,42353.0,42351.0,0.059062]
[1644627961382,0.53003713,42352.0,42351.0,0.059062]
[1644627961580,0.58003713,42352.0,42351.0,0.059062]
[1644627962731,0.379263,42352.0,42351.0,0.05897699]
[1644627962935,0.37915292,42352.0,42351.0,0.05897699]
[1644627964137,0.57992705,42352.0,42351.0,0.05897699]
[1644627964739,0.20077413,42353.0,42351.0,0.05897699]
[1644627964937,0.329263,42352.0,42351.0,0.05897699]
[1644627965739,0.20077413,42355.0,42351.0,0.05897699]
[1644627965940,0.20077413,42357.0,42351.0,0.05918944]
[1644627966199,0.20077413,42359.0,42352.0,0.0473]
[1644627966385,0.20077413,42359.0,42352.0,0.22463945]
[1644627966985,0.20077413,42358.0,42352.0,0.22463945]
[1644627967585,0.20077413,42358.0,42353.0,0.00047484]
[1644627967788,0.20077413,42358.0,42354.0,0.10635]
[1644627967988,0.20077413,42357.0,42354.0,0.10656245]
[1644627968290,0.28618653,42356.0,42354.0,0.10656245]
[1644627968487,0.28618653,42356.0,42354.0,0.10635]
[1644627968687,0.48698948,42356.0,42354.0,0.10635]
[1644627968887,0.20080295,42356.0,42354.0,0.10635]
[1644627969291,0.20080295,42357.0,42354.0,0.10635]
[1644627969490,0.20080295,42357.0,42354.0,0.10656245]
[1644627969929,0.20080295,42357.0,42354.0,0.10635]
[1644627970130,0.20080295,42357.0,42354.0,0.10656245]
[1644627970536,0.20080295,42357.0,42354.0,0.11600345]
[1644627970731,0.20080295,42356.0,42354.0,0.11600345]